bitfinex/quotes_ETHUSD_20250721
["timestamp","ask_amount","ask_price","bid_price","bid_amount"]
[1753113248678,0.55,3828.2,3828.0,0.1304]
[1753113248857,0.9858,3828.1,3828.0,0.1304]
[1753113249190,0.55,3828.1,3828.0,0.1304]
[1753113249665,0.9858,3828.1,3828.0,0.1304]
[1753113250004,3.59806195,3828.1,3827.5,0.001]
[1753113250211,0.55,3827.7,3827.6,0.1304]
[1753113250556,3.16253494,3827.7,3827.6,0.1304]
[1753113250790,3.59833494,3827.7,3827.6,0.1304]
[1753113250998,3.94220319,3827.6,3827.5,0.001]
[1753113251302,8.48200319,3827.6,3827.5,0.001]
[1753113252471,1.7654,3827.6,3827.5,0.001]
[1753113252810,8.48100319,3827.6,3827.5,0.001]
[1753113254388,4.37800319,3827.6,3827.5,0.001]
[1753113254588,8.47900319,3827.6,3827.5,0.001]
[1753113258632,9.60119195,3827.6,3827.5,0.001]
[1753113259457,9.60119195,3827.6,3826.7,0.001]
[1753113259458,3.16314936,3826.8,3826.7,0.001]
[1753113259734,8.02214936,3826.8,3826.7,0.001]
[1753113259949,4.39304936,3826.8,3826.7,0.001]
[1753113260309,8.48704936,3826.8,3826.7,0.001]
[1753113260494,9.59705558,3826.8,3826.7,0.001]
[1753113260929,5.50305558,3826.8,3826.7,0.001]
[1753113261231,9.59705558,3826.8,3826.7,0.001]
[1753113263108,24.09705558,3826.8,3826.7,0.001]
[1753113264494,24.09705558,3826.8,3825.9,0.001]
[1753113264495,3.16355914,3826.2,3825.9,0.001]
[1753113264697,7.25555914,3826.2,3825.9,0.001]
[1753113264895,3.98119576,3826.0,3825.9,0.001]
[1753113265197,8.07319576,3826.0,3825.9,0.001]
[1753113265412,8.53809576,3826.0,3825.9,0.001]
[1753113265740,9.65326125,3826.0,3825.9,0.001]
[1753113266058,24.15326125,3826.0,3825.9,0.001]
[1753113267056,20.06126125,3826.0,3825.9,0.001]
[1753113267266,24.15326125,3826.0,3825.9,0.001]
[1753113267921,24.15326125,3826.0,3825.9,1e-08]
[1753113270569,24.15326125,3826.0,3825.0,1e-08]
[1753113270570,3.16431073,3825.1,3825.0,1e-08]
[1753113270743,8.73923237,3825.1,3825.0,1e-08]
[1753113271075,9.20413237,3825.1,3825.0,1e-08]
[1753113271280,23.70413237,3825.1,3825.0,1e-08]
[1753113273639,19.61213237,3825.1,3825.0,1e-08]
[1753113273840,23.70513237,3825.1,3825.0,1e-08]
[1753113275084,23.70513237,3825.1,3824.1,0.02]
[1753113275085,3.16492599,3824.2,3824.1,0.02]
[1753113275255,8.02062599,3824.2,3824.1,0.02]
[1753113275458,8.48552599,3824.2,3824.1,0.02]
[1753113275673,18.89252599,3824.2,3824.1,0.02]
[1753113275842,22.98552599,3824.2,3824.1,0.02]
[1753113276169,23.5614133,3824.2,3824.1,0.02]
[1753113277203,23.5614133,3824.2,3824.1,1e-08]
[1753113278478,23.5624133,3824.2,3824.1,1e-08]
[1753113279203,3.16526793,3823.7,3823.6,0.001]
[1753113279498,8.59081331,3823.7,3823.6,0.001]
[1753113279653,9.05571331,3823.7,3823.6,0.001]
[1753113281279,9.05571331,3823.7,3823.6,1e-08]
[1753113281894,23.55571331,3823.7,3823.6,1e-08]
[1753113282315,19.46171331,3823.7,3823.6,1e-08]
[1753113282478,23.55571331,3823.7,3823.6,1e-08]
[1753113284502,3.98460996,3823.2,3823.1,1e-08]
[1753113284683,8.07860996,3823.2,3823.1,1e-08]
[1753113284881,4.44950996,3823.2,3823.1,1e-08]
[1753113285078,8.54350996,3823.2,3823.1,1e-08]
[1753113286611,8.54350996,3823.2,3823.1,0.00100001]
[1753113286812,9.00041781,3823.2,3823.1,0.00100001]
[1753113288216,17.66560996,3823.2,3823.1,0.00100001]
[1753113288424,2.61560996,3823.2,3823.1,0.00100001]
[1753113288623,0.4732,3823.6,3823.1,0.10580001]
[1753113288624,0.1304,3823.6,3823.1,0.10580001]
[1753113288829,2.61506276,3824.0,3823.2,0.8791]
[1753113288991,4.095,3823.9,3823.5,0.1304]
[1753113289321,4.095,3823.9,3823.6,0.8809]
[1753113289624,6.71021725,3823.8,3823.6,0.7761]
[1753113289810,2.61526793,3823.7,3823.6,0.7761]
[1753113290017,0.55,3823.2,3823.1,0.81440001]
[1753113290216,4.645,3823.2,3823.1,0.81440001]
[1753113290414,7.26060996,3823.2,3823.1,0.81440001]
[1753113290732,8.72141891,3823.2,3823.1,0.00100001]
[1753113291426,23.22141891,3823.2,3823.1,0.00100001]
[1753113291931,23.98131891,3823.2,3823.1,1e-08]
[1753113293286,17.66560996,3823.2,3823.1,1e-08]
[1753113293492,21.76060996,3823.2,3823.1,1e-08]
[1753113293908,17.66560996,3823.2,3823.1,1e-08]
[1753113294110,21.75960996,3823.2,3823.1,1e-08]
[1753113294316,0.1304,3823.3,3823.1,1e-08]
[1753113294520,2.61484577,3824.4,3823.2,0.8286]
[1753113294728,2.61514991,3823.9,3823.2,3.57456056]
[1753113294901,18.595,3823.8,3823.3,2.61554104]
[1753113295202,18.595,3823.8,3823.3,2.72034104]
[1753113295403,0.1304,3824.1,3823.7,0.8286]
[1753113295625,2.61514306,3823.9,3823.7,0.959]
[1753113295938,4.645,3823.8,3823.7,0.959]
[1753113296229,2.61560996,3823.2,3823.1,1e-08]
[1753113296393,7.25960996,3823.2,3823.1,1e-08]
[1753113296790,22.23280996,3823.2,3823.1,1e-08]
[1753113297292,21.75960996,3823.2,3823.1,1e-08]
[1753113297542,20.22088407,3823.2,3823.1,1e-08]
[1753113297843,17.66560996,3823.2,3823.1,1e-08]
[1753113297992,21.75960996,3823.2,3823.1,1e-08]
[1753113299205,17.66560996,3823.2,3823.1,1e-08]
[1753113299396,21.75960996,3823.2,3823.1,1e-08]
[1753113299853,0.55,3822.9,3822.3,0.001]
[1753113300099,3.16615738,3822.4,3822.3,0.001]
[1753113300437,21.76015738,3822.4,3822.3,0.001]
[1753113300598,17.66615738,3822.4,3822.3,0.001]
[1753113300799,4.094,3822.4,3822.3,0.1058]
[1753113301108,2.61584642,3822.9,3822.3,0.8763]
[1753113301310,14.5,3823.0,3822.3,3.4924744]
[1753113301504,4.094,3822.9,3822.4,3.22911839]
[1753113301695,1.2867,3824.1,3822.7,0.7705]
[1753113301897,4.094,3824.0,3823.1,3.0]
[1753113302098,6.70906748,3824.0,3823.2,0.1048]
[1753113302431,2.61518432,3823.9,3823.2,0.1048]
[1753113302618,6.70920922,3823.8,3823.2,0.1048]
[1753113302819,2.61546665,3823.5,3823.0,0.7705]
[1753113303023,0.55,3823.3,3823.0,0.7705]
[1753113303210,4.094,3823.2,3823.0,0.7705]
[1753113304416,0.55,3823.1,3823.0,0.7705]
[1753113304599,3.16567837,3823.1,3823.0,0.7705]
[1753113304797,0.55,3822.7,3822.6,0.7909]
[1753113305001,4.644,3822.7,3822.6,0.7909]
[1753113305302,4.644,3822.7,3822.6,0.8957]
[1753113305523,4.644,3822.7,3822.6,1.14480087]
[1753113305728,4.644,3822.7,3822.6,0.7909]
[1753113307057,7.25995207,3822.7,3822.6,0.7909]
[1753113307254,0.55,3822.5,3822.4,0.1304]
[1753113307402,7.26008894,3822.5,3822.4,0.1304]
[1753113307602,4.644,3822.5,3822.4,0.1304]
[1753113307919,7.26008894,3822.5,3822.4,0.1304]
[1753113308818,3.16615738,3822.4,3822.3,0.001]
[1753113309331,3.63935738,3822.4,3822.3,0.001]
[1753113309704,3.16615738,3822.4,3822.3,0.001]
[1753113310844,7.26015738,3822.4,3822.3,0.001]
[1753113313041,4.644,3822.4,3822.3,0.001]
[1753113313346,7.26015738,3822.4,3822.3,0.001]
[1753113314536,7.73335738,3822.4,3822.3,0.001]
[1753113315647,7.26015738,3822.4,3822.3,0.001]
[1753113315950,3.16615738,3822.4,3822.3,0.001]
[1753113316162,7.26015738,3822.4,3822.3,0.001]
[1753113316465,3.16615738,3822.4,3822.3,0.001]
[1753113316767,0.1304,3822.7,3822.4,0.7682]
[1753113317049,4.094,3824.0,3823.1,3.7682]
[1753113317266,4.094,3824.0,3823.5,3.0]
[1753113317547,4.094,3824.0,3823.5,1.02822747]
[1753113317724,0.1304,3824.3,3823.7,3.0]
[1753113317923,4.094,3824.2,3823.9,0.7852]
[1753113318146,4.094,3824.1,3823.9,0.9156]
[1753113318521,4.094,3824.0,3823.9,3.53073114]
[1753113318751,4.094,3824.0,3823.9,0.9156]
[1753113319348,4.094,3824.0,3823.9,3.53073114]
[1753113319573,0.002,3824.5,3823.9,3.9156]
[1753113319771,0.002,3824.5,3824.4,2.61478924]
[1753113320136,4.095,3824.5,3824.4,5.74518924]
[1753113320743,0.002,3824.5,3824.4,5.74518924]
[1753113321071,0.002,3824.5,3824.4,5.87413713]
[1753113321235,0.002,3824.5,3824.4,6.67633713]
[1753113321436,0.002,3824.8,3824.7,6.40878415]
[1753113321735,0.002,3824.8,3824.7,6.56532999]
[1753113321968,0.002,3824.8,3824.7,6.66812999]
[1753113322168,1e-08,3824.8,3824.7,6.66812999]
[1753113322439,1e-08,3824.9,3824.8,6.17861579]
[1753113322744,1e-08,3824.9,3824.8,8.64450417]
[1753113323579,0.02,3825.9,3825.8,2.6138324]
[1753113323782,0.57,3825.9,3825.8,2.6138324]
[1753113324101,1.0261,3825.9,3825.3,0.1304]
[1753113324275,0.55,3825.4,3824.0,0.8062]
[1753113324588,0.55,3825.4,3824.8,0.1304]
[1753113324589,0.55,3825.2,3824.8,0.1304]
[1753113325656,3.16424887,3825.2,3824.8,0.1304]
[1753113325837,0.55,3824.9,3824.8,0.1304]
[1753113326038,3.16444743,3824.9,3824.8,0.1304]
[1753113326257,3.62054743,3824.9,3824.8,0.1304]
[1753113326451,0.55,3824.3,3824.0,0.8062]
[1753113326762,0.55,3824.1,3824.0,0.8062]
[1753113327062,0.55,3824.1,3824.0,0.9366]
[1753113327277,0.55,3824.2,3824.0,0.9366]
[1753113327478,3.16499437,3824.1,3824.0,0.9366]
[1753113327863,3.16499437,3824.1,3824.0,0.1304]
[1753113328292,3.16506276,3824.0,3823.9,0.05544647]
[1753113328500,7.71316276,3824.0,3823.9,0.05544647]
[1753113328665,8.39177847,3824.0,3823.9,0.05544647]
[1753113329920,7.29977847,3824.0,3823.9,1e-08]
[1753113330057,11.39177847,3824.0,3823.9,1e-08]
[1753113331166,4.29977847,3824.0,3823.9,1e-08]
[1753113331509,8.39177847,3824.0,3823.9,1e-08]
[1753113334014,7.84177847,3824.0,3823.9,1e-08]
[1753113334177,8.39177847,3824.0,3823.9,1e-08]
[1753113338397,4.29977847,3824.0,3823.9,1e-08]
[1753113338789,8.39177847,3824.0,3823.9,1e-08]
[1753113339095,4.29977847,3824.0,3823.9,1e-08]
[1753113339298,8.39177847,3824.0,3823.9,1e-08]
[1753113339499,10.27177847,3824.0,3823.9,1e-08]
[1753113339695,4.49506276,3824.0,3823.9,1e-08]
[1753113339908,9.04316276,3824.0,3823.9,1e-08]
[1753113340101,9.59316276,3824.0,3823.9,1e-08]
[1753113340510,10.41756276,3824.0,3823.9,1e-08]
[1753113342211,5.77556276,3824.0,3823.9,1e-08]
[1753113342376,10.71965847,3824.0,3823.9,1e-08]
[1753113342572,11.26965847,3824.0,3823.9,1e-08]
[1753113345112,3.16560996,3823.2,3823.1,0.021]
[1753113345292,7.25760996,3823.2,3823.1,0.021]
[1753113346317,4.092,3823.2,3823.1,0.9289]
[1753113346521,4.642,3823.2,3823.1,0.9289]
[1753113347105,0.1304,3823.8,3823.1,1.28336954]
[1753113347284,4.092,3823.8,3823.5,2.61534201]
[1753113347479,4.092,3823.8,3823.7,0.1304]
[1753113347681,4.092,3824.0,3823.7,0.2332]
[1753113347899,4.092,3824.0,3823.9,0.1304]
[1753113348099,0.8011,3824.2,3823.9,0.1304]
[1753113348297,0.8011,3824.2,3824.1,2.61499437]
[1753113348630,0.8011,3824.2,3824.1,0.2332]
[1753113348810,1.3511,3824.2,3824.1,0.1304]
[1753113349322,3.96602599,3824.2,3824.1,0.1304]
[1753113349827,8.05802599,3824.2,3824.1,0.1304]
[1753113350228,0.55,3824.0,3823.1,0.7985]
[1753113350431,3.16519953,3823.8,3823.7,0.1304]
[1753113350611,4.092,3823.8,3823.1,0.7985]
[1753113350813,0.55,3823.7,3823.4,0.1304]
[1753113351132,0.55,3823.5,3823.4,0.1304]
[1753113351287,0.55,3823.6,3823.4,0.76753004]
[1753113351486,0.55,3823.6,3823.5,5.71820473]
[1753113351802,0.8011,3824.2,3823.5,5.71820473]
[1753113351803,0.55,3824.1,3823.8,2.61518401]
[1753113351998,0.002,3824.2,3824.0,0.1304]
[1753113352330,0.552,3824.2,3824.0,0.1304]
[1753113352531,0.002,3824.2,3824.0,2.74543023]
[1753113352716,0.552,3824.2,3824.0,0.1304]
[1753113354303,0.002,3824.2,3824.0,0.1304]
[1753113354507,2.61506276,3824.0,3822.1,2.63734093]
[1753113354739,3.16560996,3823.2,3822.3,0.1314]
[1753113354960,7.28160996,3823.2,3822.3,0.1314]
[1753113355088,7.72870996,3823.2,3822.3,0.1314]
[1753113355292,8.76313355,3823.2,3822.3,0.1314]
[1753113357028,7.72570996,3823.2,3822.3,0.1314]
[1753113360405,3.61270996,3823.2,3822.3,0.1314]
[1753113360838,7.72170996,3823.2,3822.3,0.1314]
[1753113361043,3.16615738,3822.4,3822.3,0.001]
[1753113361203,7.27515738,3822.4,3822.3,0.001]
[1753113361405,7.72225738,3822.4,3822.3,0.001]
[1753113362148,8.75609045,3822.4,3822.3,0.001]
[1753113362521,3.16629428,3822.2,3822.1,0.021]
[1753113363159,7.72139428,3822.2,3822.1,0.021]
[1753113363356,7.72239428,3822.2,3822.1,0.021]
[1753113363669,7.27019428,3822.2,3822.1,0.021]
[1753113363874,7.40669428,3822.2,3822.1,0.021]
[1753113364369,4.7904,3822.2,3822.1,0.021]
[1753113364665,7.40669428,3822.2,3822.1,0.021]
[1753113366163,4.11,3822.2,3822.1,0.021]
[1753113366370,4.659,3822.2,3822.1,0.021]
[1753113369027,0.1304,3822.6,3822.1,0.021]
[1753113369229,4.105,3822.5,3822.2,0.1028]
[1753113369563,0.55,3822.3,3822.2,0.1028]
[1753113369726,0.55,3822.3,3822.2,2.7190507]
[1753113370061,0.55,3822.3,3822.2,3.38781357]
[1753113370571,0.55,3822.8,3822.2,3.38781357]
[1753113370774,0.55,3822.6,3822.3,2.61621204]
[1753113371077,4.106,3822.7,3822.5,0.1304]
[1753113371078,0.55,3822.7,3822.5,0.1304]
[1753113372132,0.5477133,3822.7,3822.5,0.1304]
[1753113372560,4.103,3822.6,3822.5,0.1304]
[1753113372743,5.40716531,3822.6,3822.1,0.021]
[1753113372943,2.61629428,3822.2,3822.1,0.021]
[1753113373144,6.71829428,3822.2,3822.1,0.021]
[1753113373689,7.16539428,3822.2,3822.1,0.021]
[1753113374043,7.71539428,3822.2,3822.1,0.021]
[1753113374483,7.71439428,3822.2,3822.1,0.021]
[1753113375193,4.6594899,3822.2,3822.1,0.021]
[1753113375767,7.71239428,3822.2,3822.1,0.021]
[1753113376199,7.71139428,3822.2,3822.1,0.021]
[1753113379204,7.71039428,3822.2,3822.1,0.021]
[1753113380992,9.59039428,3822.2,3822.1,0.021]
[1753113381794,5.04629428,3822.2,3822.1,0.021]
[1753113381993,8.59029428,3822.2,3822.1,0.021]
[1753113382874,9.57449428,3822.2,3822.1,0.021]
[1753113383072,5.48049428,3822.2,3822.1,0.021]
[1753113383307,9.57449428,3822.2,3822.1,0.021]
[1753113383511,5.48049428,3822.2,3822.1,0.021]
[1753113383706,9.57449428,3822.2,3822.1,0.021]
[1753113384700,5.48049428,3822.2,3822.1,0.021]
[1753113385010,9.57449428,3822.2,3822.1,0.021]
[1753113385912,5.48049428,3822.2,3822.1,0.021]
[1753113386111,9.57449428,3822.2,3822.1,0.021]
[1753113387578,5.48049428,3822.2,3822.1,0.021]
[1753113387779,9.57449428,3822.2,3822.1,0.021]
[1753113387980,2.43,3822.2,3822.1,0.021]
[1753113388180,0.1304,3822.3,3822.1,0.021]
[1753113388381,2.61591261,3822.8,3822.1,2.63734536]
[1753113388691,0.55,3822.6,3822.2,3.44175114]
[1753113388887,0.55,3822.4,3822.2,0.82548404]
[1753113389098,2.6157662,3823.0,3822.2,3.0]
[1753113389301,2.74610848,3823.1,3822.4,0.1304]
[1753113389582,2.61585778,3822.9,3822.4,0.1304]
[1753113389782,0.55,3822.7,3822.4,0.1304]
[1753113390814,0.55,3822.5,3822.4,0.1304]
[1753113391015,0.55,3822.7,3822.4,0.1304]
[1753113391222,3.16596272,3822.7,3822.4,0.1304]
[1753113391581,0.55,3822.7,3822.4,0.1304]
[1753113391817,0.55,3822.7,3822.4,0.70716695]
[1753113392420,0.55,3822.7,3822.4,0.1304]
[1753113392630,3.16608894,3822.5,3822.4,0.1304]
[1753113392814,0.55,3822.4,3822.2,0.1304]
[1753113392985,0.55,3822.5,3822.2,0.1304]
[1753113393886,0.55,3822.4,3822.2,0.1304]
[1753113394086,0.55,3822.3,3822.2,0.1304]
[1753113396198,3.16622583,3822.3,3822.2,0.1304]
[1753113396398,3.16629428,3822.2,3822.1,0.021]
[1753113396597,3.60049428,3822.2,3822.1,0.021]
[1753113397120,3.16629428,3822.2,3822.1,0.021]
[1753113397526,0.55,3822.2,3822.1,0.021]
[1753113397907,3.16629428,3822.2,3822.1,0.021]
[1753113398596,3.60049428,3822.2,3822.1,0.021]
[1753113399495,0.9842,3822.2,3822.1,0.021]
[1753113399811,3.16629428,3822.2,3822.1,0.021]
[1753113400336,0.55,3822.2,3822.1,0.021]
[1753113400736,3.16629428,3822.2,3822.1,0.021]
[1753113400934,0.55,3822.2,3822.1,0.021]
[1753113401302,3.16629428,3822.2,3822.1,0.021]
[1753113401920,0.55,3822.2,3822.1,0.021]
[1753113402612,3.16629428,3822.2,3822.1,0.021]
[1753113403003,3.60049428,3822.2,3822.1,0.021]
[1753113404015,4.64459327,3822.2,3822.1,0.021]
[1753113404737,4.34079327,3822.2,3822.1,0.021]
[1753113404907,3.29669428,3822.2,3822.1,0.021]
[1753113405103,3.73089428,3822.2,3822.1,0.021]
[1753113406402,3.29669428,3822.2,3822.1,0.021]
[1753113406602,7.38969428,3822.2,3822.1,0.021]
[1753113407150,7.86139428,3822.2,3822.1,0.021]
[1753113407944,8.90915502,3822.2,3822.1,0.021]
[1753113408504,9.74215502,3822.2,3822.1,0.021]
[1753113411830,8.90915502,3822.2,3822.1,0.021]
[1753113412146,24.16745502,3822.2,3822.1,0.021]
[1753113412678,24.16745502,3822.2,3822.0,1e-08]
[1753113412878,24.16745502,3822.2,3821.1,0.02]
[1753113412879,1.376,3821.3,3821.1,0.02]
[1753113413043,4.13044744,3821.1,3821.0,1e-08]
[1753113413239,8.22344744,3821.1,3821.0,1e-08]
[1753113413544,23.19514744,3821.1,3821.0,1e-08]
[1753113414276,23.19414744,3821.1,3821.0,1e-08]
[1753113414774,23.92002161,3821.1,3821.0,1e-08]
[1753113416892,3.16711593,3821.0,3820.9,1e-08]
[1753113417185,3.94838993,3820.6,3820.5,1e-08]
[1753113417358,3.94859547,3820.3,3820.2,0.001]
[1753113417541,8.04159547,3820.3,3820.2,0.001]
[1753113417741,8.51329547,3820.3,3820.2,0.001]
[1753113417940,23.01329547,3820.3,3820.2,0.001]
[1753113419064,3.98846399,3820.2,3820.0,0.001]
[1753113419264,3.16773252,3820.1,3820.0,0.001]
[1753113419439,7.73243252,3820.1,3820.0,0.001]
[1753113420149,3.63943252,3820.1,3820.0,0.001]
[1753113420352,4.2234,3820.1,3820.0,0.001]
[1753113420566,0.1304,3820.4,3820.0,0.001]
[1753113420774,4.093,3820.3,3820.0,0.001]
[1753113420937,6.71060016,3820.3,3820.0,0.001]
[1753113421695,4.093,3820.3,3820.0,0.001]
[1753113421898,0.4717,3820.8,3820.2,0.7585]
[1753113422074,2.61748619,3820.5,3820.2,0.7585]
[1753113422243,0.55,3820.3,3820.2,0.7585]
[1753113422448,2.61759547,3820.3,3820.2,0.7585]
[1753113422669,7.26059547,3820.3,3820.2,0.7585]
[1753113423086,0.55,3820.1,3820.0,0.001]
[1753113423285,4.643,3820.1,3820.0,0.001]
[1753113423589,0.55,3820.1,3820.0,0.001]
[1753113423765,4.643,3820.1,3820.0,0.001]
[1753113424187,0.55,3820.1,3820.0,0.66315173]
[1753113424391,4.643,3820.1,3820.0,4.07975277]
[1753113424575,0.55,3820.1,3820.0,1.46195173]
[1753113424774,4.643,3820.1,3820.0,1.46195173]
[1753113425087,0.55,3820.1,3820.0,1.46195173]
[1753113425295,4.643,3820.1,3820.0,1.46195173]
[1753113425494,4.643,3820.1,3820.0,0.001]
[1753113425898,7.26073252,3820.1,3820.0,0.001]
[1753113426060,0.55,3820.1,3820.0,0.001]
[1753113426259,4.643,3820.1,3820.0,0.001]
[1753113427009,7.26073252,3820.1,3820.0,0.001]
[1753113427169,7.73243252,3820.1,3820.0,0.001]
[1753113427789,9.58218187,3820.1,3820.0,0.001]
[1753113430093,4.08540104,3820.0,3819.6,0.001]
[1753113430303,4.08540104,3820.0,3819.3,0.001]
[1753113430304,3.95534373,3819.5,3819.3,0.001]
[1753113430520,3.95534373,3819.5,3819.1,0.02]
[1753113430521,3.16834939,3819.2,3819.1,0.02]
[1753113430805,7.26134939,3819.2,3819.1,0.02]
[1753113431104,24.37750993,3819.2,3819.1,1e-08]
[1753113434110,20.28450993,3819.2,3819.1,1e-08]
[1753113434271,23.82750993,3819.2,3819.1,1e-08]
[1753113434472,24.37750993,3819.2,3819.1,1e-08]
[1753113435913,24.37750993,3819.2,3818.1,0.02]
[1753113435914,3.16903514,3818.2,3818.1,0.02]
[1753113436080,7.26203514,3818.2,3818.1,0.02]
[1753113436291,7.70763514,3818.2,3818.1,0.02]
[1753113436600,8.09200754,3818.2,3818.1,0.02]
[1753113437191,22.59200754,3818.2,3818.1,0.02]
[1753113437586,23.36280754,3818.2,3818.1,0.02]
[1753113437814,25.24280754,3818.2,3818.1,0.02]
[1753113438607,21.14980754,3818.2,3818.1,0.02]
[1753113438807,25.24380754,3818.2,3818.1,0.02]
[1753113440129,25.24380754,3818.2,3817.8,0.13665387]
[1753113440320,4.66275309,3818.1,3817.8,0.13665387]
[1753113440516,3.16924094,3817.9,3817.8,0.13665387]
[1753113440735,3.16924094,3817.9,3817.5,0.001]
[1753113440736,3.16944677,3817.6,3817.5,0.001]
[1753113440937,8.03174677,3817.6,3817.5,0.001]
[1753113441231,8.47734677,3817.6,3817.5,0.001]
[1753113441545,9.84894186,3817.6,3817.5,0.001]
[1753113442759,4.094,3817.6,3817.5,0.001]
[1753113443561,4.644,3817.6,3817.5,0.001]
[1753113446865,7.26344677,3817.6,3817.5,0.001]
[1753113447240,7.70904677,3817.6,3817.5,0.001]
[1753113448767,3.16972126,3817.2,3817.1,0.02]
[1753113448947,7.84164492,3817.2,3817.1,0.02]
[1753113449147,23.54924492,3817.2,3817.1,0.02]
[1753113450759,18.594,3817.2,3817.1,0.02]
[1753113450960,18.7234,3817.2,3817.1,0.02]
[1753113451164,14.6304,3817.2,3817.1,0.02]
[1753113451335,18.593,3817.2,3817.1,0.02]
[1753113451969,4.093,3817.2,3817.1,0.02]
[1753113452892,4.643,3817.2,3817.1,0.02]
[1753113454704,4.093,3817.2,3817.1,3.42077077]
[1753113454900,4.093,3817.2,3817.1,7.15095817]
[1753113454901,0.55,3817.2,3817.1,7.15095817]
[1753113455055,4.643,3817.2,3817.1,7.15095817]
[1753113455256,14.5,3818.2,3817.8,2.61930955]
[1753113455495,4.093,3818.1,3817.9,0.1304]
[1753113455853,2.61917234,3818.0,3817.9,0.1304]
[1753113456096,0.55,3817.8,3817.6,0.1304]
[1753113456268,0.55,3817.8,3817.3,0.781]
[1753113456269,0.55,3817.6,3817.3,0.781]
[1753113456593,0.55,3817.4,3817.3,0.781]
[1753113456766,0.55,3817.4,3817.3,0.9114]
[1753113456969,0.55,3817.4,3817.1,0.02]
[1753113457315,0.55,3817.2,3817.1,0.02]
[1753113458081,3.16972126,3817.2,3817.1,0.02]
[1753113458477,0.55,3817.2,3817.1,0.02]
[1753113459567,3.16972126,3817.2,3817.1,0.02]
[1753113459901,0.55,3817.2,3817.1,0.02]
[1753113460060,3.16972126,3817.2,3817.1,0.02]
[1753113460255,0.55,3817.2,3817.1,0.021]
[1753113460473,3.16972126,3817.2,3817.1,0.021]
[1753113460698,0.55,3817.2,3817.1,0.021]
[1753113460872,2.74985117,3817.6,3817.1,0.021]
[1753113460873,0.1304,3817.6,3817.1,0.021]
[1753113461073,4.092,3817.5,3817.2,0.1028]
[1753113461285,4.092,3817.4,3817.2,0.1028]
[1753113461673,4.642,3817.4,3817.3,0.1304]
[1753113463069,4.642,3817.4,3817.1,0.021]
[1753113463070,2.61972126,3817.2,3817.1,0.021]
[1753113463299,4.642,3817.2,3817.1,0.021]
[1753113463503,8.29440162,3817.2,3817.1,0.021]
[1753113463681,8.74000162,3817.2,3817.1,0.021]
[1753113464610,8.29440162,3817.2,3817.1,0.021]
[1753113464988,8.74000162,3817.2,3817.1,0.021]
[1753113465375,9.52710162,3817.2,3817.1,1e-08]
[1753113465881,24.02710162,3817.2,3817.1,1e-08]
[1753113467796,3.17040773,3816.2,3816.1,0.02]
[1753113468005,7.26240773,3816.2,3816.1,0.02]
[1753113468202,7.69350773,3816.2,3816.1,0.02]
[1753113468621,8.80189088,3816.2,3816.1,0.02]
[1753113469237,22.19350773,3816.2,3816.1,0.02]
[1753113470719,17.67040773,3816.2,3816.1,0.02]
[1753113470929,22.19350773,3816.2,3816.1,0.02]
[1753113472324,7.69350773,3816.2,3816.1,0.02]
[1753113472729,22.19350773,3816.2,3816.1,0.02]
[1753113473436,23.96890966,3816.2,3816.1,0.02]
[1753113474440,19.44580966,3816.2,3816.1,0.02]
[1753113474639,17.67040773,3816.2,3816.1,0.02]
[1753113474839,21.76240773,3816.2,3816.1,0.02]
[1753113475023,22.19350773,3816.2,3816.1,0.02]
[1753113477845,18.10150773,3816.2,3816.1,0.02]
[1753113478047,22.19350773,3816.2,3816.1,0.02]
[1753113478721,3.17081979,3815.6,3815.3,0.001]
[1753113479046,8.04781979,3815.6,3815.3,0.001]
[1753113479230,8.47891979,3815.6,3815.3,0.001]
[1753113479547,0.55,3814.7,3814.5,0.73790001]
[1753113479840,7.26350684,3814.6,3814.5,0.73790001]
[1753113480202,7.26350684,3814.6,3814.1,1e-08]
[1753113480203,0.55,3814.5,3814.3,0.1304]
[1753113480420,0.55,3814.4,3814.3,0.1304]
[1753113480661,4.642,3814.4,3814.3,3.1304]
[1753113481061,0.55,3814.3,3814.1,1e-08]
[1753113481262,6.71364429,3814.4,3814.1,1e-08]
[1753113481263,4.642,3814.2,3814.1,1e-08]
[1753113481425,7.69488176,3814.2,3814.1,1e-08]
[1753113481630,7.39418176,3814.2,3814.1,1e-08]
[1753113481962,4.7724,3814.2,3814.1,1e-08]
[1753113482149,7.39418176,3814.2,3814.1,1e-08]
[1753113484470,4.7724,3814.2,3814.1,1e-08]
[1753113484865,7.39418176,3814.2,3814.1,1e-08]
[1753113485256,4.7724,3814.2,3814.1,1e-08]
[1753113485460,7.39418176,3814.2,3814.1,1e-08]
[1753113486786,7.82528176,3814.2,3814.1,1e-08]
[1753113486959,8.8699754,3814.2,3814.1,1e-08]
[1753113487291,9.6481754,3814.2,3814.1,1e-08]
[1753113488207,2.62274443,3812.8,3812.7,1e-08]
[1753113488372,4.642,3812.8,3812.7,1e-08]
[1753113488570,0.55,3812.8,3812.7,1e-08]
[1753113488802,3.17274443,3812.8,3812.7,1e-08]
[1753113489004,7.26474443,3812.8,3812.7,1e-08]
[1753113489808,3.17274443,3812.8,3812.7,1e-08]
[1753113489967,0.55,3812.8,3812.7,1e-08]
[1753113490171,4.643,3812.8,3812.7,1e-08]
[1753113490367,4.643,3812.8,3812.7,0.80930001]